fUSD/lending_fUSD_20250123
["ID","MTS","AMOUNT","RATE_DAILY","PERIOD"]
[350071308,1737599443748,-500.0,0.00019452,2]
[350071309,1737599443757,-500.0,0.00019452,2]
[350071310,1737599443766,-500.0,0.00019452,2]
[350071311,1737599443775,-500.0,0.00019452,2]
[350071312,1737599443785,-516.43473908,0.00019452,2]
[350071313,1737599443794,-500.0,0.00019452,2]
[350071314,1737599443804,-2577.5,0.00019452,2]
[350071315,1737599443814,-1303.47,0.00019452,2]
[350071316,1737599443825,-500.88960218,0.00019473,2]
[350071317,1737599443834,-337.11980556,0.00019486,2]
[350071318,1737599443844,-401.06520507,0.00019567,2]
[350071319,1737599443853,-928.2,0.0001959,2]
[350071320,1737599443866,-507.70711885,0.00019625,2]
[350071321,1737599443876,-500.0,0.00019625,2]
[350071322,1737599443887,-500.0,0.00019625,2]
[350071323,1737599443896,-605.26178496,0.00019625,2]
[350071324,1737599443907,-500.0,0.00019625,2]
[350071325,1737599443916,-500.0,0.00019625,2]
[350071326,1737599443925,-500.0,0.00019625,2]
[350071327,1737599443934,-500.0,0.00019625,2]
[350071328,1737599443950,-500.0,0.00019625,2]
[350071329,1737599443958,-500.0,0.00019625,2]
[350071330,1737599443967,-500.0,0.00019625,2]
[350071331,1737599443976,-500.0,0.00019625,2]
[350071332,1737599443985,-500.0,0.00019625,2]
[350071333,1737599443994,-500.0,0.00019625,2]
[350071334,1737599444003,-500.0,0.00019625,2]
[350071335,1737599444014,-500.0,0.00019625,2]
[350071336,1737599444023,-516.54962337,0.00019625,2]
[350071337,1737599444033,-500.0,0.00019625,2]
[350071338,1737599444042,-500.0,0.00019625,2]
[350071339,1737599444051,-500.0,0.00019625,2]
[350071340,1737599444060,-500.0,0.00019625,2]
[350071341,1737599444070,-500.0,0.00019625,2]
[350071342,1737599444082,-259.58069358,0.00019625,2]
[350071343,1737599444091,-500.0,0.00019625,2]
[350071344,1737599444100,-500.0,0.00019625,2]
[350071345,1737599444111,-500.0,0.00019625,2]
[350071346,1737599444122,-500.0,0.00019625,2]
[350071347,1737599444131,-500.0,0.00019625,2]
[350071348,1737599444141,-500.0,0.00019625,2]
[350071349,1737599444150,-500.0,0.00019625,2]
[350071350,1737599444159,-500.0,0.00019625,2]
[350071351,1737599444168,-508.79731797,0.00019625,2]
[350071352,1737599444177,-500.0,0.00019625,2]
[350071353,1737599444186,-501.37186095,0.00019625,2]
[350071354,1737599444196,-500.0,0.00019625,2]
[350071355,1737599444205,-500.0,0.00019625,2]
[350071356,1737599444214,-500.0,0.00019625,2]
[350071357,1737599444223,-503.73900887,0.00019625,2]
[350071358,1737599444232,-500.0,0.00019625,2]
[350071359,1737599444241,-500.0,0.00019625,2]
[350071360,1737599444249,-500.0,0.00019625,2]
[350071361,1737599444258,-271.74689622,0.00019625,2]
[350071362,1737599444267,-500.0,0.00019625,2]
[350071363,1737599444276,-154.89527451,0.00019625,2]
[350071364,1737599444285,-495.0,0.00019625,2]
[350071365,1737599444428,-500.0,0.00019625,2]
[350071366,1737599444438,-500.0,0.00019625,2]
[350071367,1737599444449,-500.0,0.00019625,2]
[350071368,1737599444458,-500.0,0.00019625,2]
[350071369,1737599444467,-500.0,0.00019625,2]
[350071370,1737599444476,-510.32359324,0.00019625,2]
[350071371,1737599444485,-583.99,0.00019625,2]
[350071372,1737599444494,-500.0,0.00019625,2]
[350071373,1737599444503,-500.0,0.00019625,2]
[350071374,1737599444511,-500.0,0.00019625,2]
[350071375,1737599444520,-500.0,0.00019625,2]
[350071376,1737599444529,-500.0,0.00019625,2]
[350071377,1737599444538,-522.49812734,0.00019625,2]
[350071378,1737599444547,-500.32648021,0.00019625,2]
[350071379,1737599444556,-500.0,0.00019625,2]
[350071380,1737599444565,-500.0,0.00019625,2]
[350071381,1737599444574,-500.0,0.00019625,2]
[350071382,1737599444583,-504.93008753,0.00019625,2]
[350071383,1737599444593,-507.16855484,0.00019625,2]
[350071384,1737599444602,-613.17227261,0.00019625,2]
[350071385,1737599444611,-500.0,0.00019625,2]
[350071386,1737599444621,-500.0,0.00019625,2]
[350071387,1737599444630,-500.0,0.00019625,2]
[350071388,1737599444639,-500.0,0.00019625,2]
[350071389,1737599444649,-352.06346201,0.00019625,2]
[350071390,1737599444658,-500.0,0.00019625,2]
[350071391,1737599444669,-243.3892939,0.00019625,2]
[350071392,1737599444678,-500.0,0.00019625,2]
[350071393,1737599444688,-500.0,0.00019625,2]
[350071394,1737599444699,-500.0,0.00019625,2]
[350071395,1737599444708,-516.52638546,0.00019625,2]
[350071396,1737599444717,-500.0,0.00019625,2]
[350071397,1737599444727,-500.0,0.00019625,2]
[350071398,1737599444736,-500.0,0.00019625,2]
[350071399,1737599444746,-500.0,0.00019625,2]
[350071400,1737599444755,-539.95647041,0.00019625,2]
[350071401,1737599444764,-500.0,0.00019625,2]
[350071402,1737599444775,-309.96686853,0.00019625,2]
[350071403,1737599444784,-256.16825079,0.00019625,2]
[350071404,1737599444793,-500.0,0.00019625,2]
[350071405,1737599444805,-500.0,0.00019625,2]
[350071406,1737599444814,-610.98847149,0.00019625,2]
[350071407,1737599444823,-292.82072733,0.00019625,2]
[350071408,1737599444834,-500.0,0.00019625,2]
[350071409,1737599444844,-507.90813339,0.00019625,2]
[350071410,1737599444853,-501.36353133,0.00019625,2]
[350071411,1737599444863,-500.0,0.00019625,2]
[350071412,1737599444878,-503.99076936,0.00019625,2]
[350071413,1737599444887,-500.0,0.00019625,2]
[350071414,1737599444897,-500.0,0.00019625,2]
[350071415,1737599444909,-521.42842684,0.00019625,2]
[350071416,1737599444919,-500.92449861,0.00019625,2]
[350071417,1737599444929,-492.9,0.00019625,2]
[350071418,1737599444940,-500.0,0.00019625,2]
[350071419,1737599444954,-500.0,0.00019625,2]
[350071420,1737599444964,-506.33976089,0.00019625,2]
[350071421,1737599444973,-500.0,0.00019625,2]
[350071422,1737599444982,-502.62524806,0.00019625,2]
[350071423,1737599444992,-500.0,0.00019625,2]
[350071424,1737599445001,-500.0,0.00019625,2]
[350071425,1737599445010,-500.0,0.00019625,2]
[350071426,1737599445019,-500.0,0.00019625,2]
[350071427,1737599445028,-496.44420831,0.00019625,2]
[350071428,1737599445037,-500.0,0.00019625,2]
[350071429,1737599445046,-500.0,0.00019625,2]
[350071430,1737599445055,-500.0,0.00019625,2]
[350071431,1737599445064,-504.52888451,0.00019625,2]
[350071432,1737599445073,-512.18678296,0.00019625,2]
[350071433,1737599445082,-507.99304485,0.00019625,2]
[350071434,1737599445092,-515.21993304,0.00019625,2]
[350071435,1737599445102,-500.0,0.00019625,2]
[350071436,1737599445111,-447.4115106,0.00019625,2]
[350071437,1737599445119,-500.0,0.00019625,2]
[350071438,1737599445129,-500.0,0.00019625,2]
[350071439,1737599445139,-505.717373,0.00019625,2]
[350071440,1737599445148,-500.0,0.00019625,2]
[350071441,1737599445157,-505.62533142,0.00019625,2]
[350071442,1737599445166,-282.27523107,0.00019625,2]
[350071443,1737599445175,-500.0,0.00019625,2]
[350071444,1737599445186,-516.56017609,0.00019625,2]
[350071445,1737599445197,-500.0,0.00019625,2]
[350071446,1737599445206,-517.33604945,0.00019625,2]
[350071447,1737599445215,-500.0,0.00019625,2]
[350071448,1737599445224,-518.56617507,0.00019625,2]
[350071449,1737599445233,-500.0,0.00019625,2]
[350071450,1737599445242,-500.0,0.00019625,2]
[350071451,1737599445251,-500.0,0.00019625,2]
[350071452,1737599445260,-512.54978385,0.00019625,2]
[350071454,1737599445269,-500.0,0.00019625,2]
[350071455,1737599445278,-500.0,0.00019625,2]
[350071456,1737599445288,-500.0,0.00019625,2]
[350071457,1737599445297,-500.0,0.00019625,2]
[350071458,1737599445306,-500.0,0.00019625,2]
[350071459,1737599445316,-500.0,0.00019625,2]
[350071460,1737599445325,-500.0,0.00019625,2]
[350071461,1737599445335,-246.48262511,0.00019625,2]
[350071462,1737599445345,-500.0,0.00019625,2]
[350071463,1737599445354,-500.0,0.00019625,2]
[350071464,1737599445363,-500.0,0.00019625,2]
[350071465,1737599445373,-502.59104124,0.00019625,2]
[350071466,1737599445382,-507.75870182,0.00019625,2]
[350071467,1737599445391,-500.0,0.00019625,2]
[350071468,1737599445401,-500.0,0.00019625,2]
[350071469,1737599445411,-502.94794006,0.00019625,2]
[350071470,1737599445421,-500.0,0.00019625,2]
[350071471,1737599445430,-500.0,0.00019625,2]
[350071472,1737599445439,-500.0,0.00019625,2]
[350071473,1737599445451,-500.0,0.00019625,2]
[350071474,1737599445460,-500.0,0.00019625,2]
[350071476,1737599445469,-500.0,0.00019625,2]
[350071479,1737599445479,-500.0,0.00019625,2]
[350071481,1737599445488,-500.0,0.00019625,2]
[350071483,1737599445498,-500.0,0.00019625,2]
[350071485,1737599445508,-509.2574926,0.00019625,2]
[350071487,1737599445517,-500.0,0.00019625,2]
[350071488,1737599445526,-500.0,0.00019625,2]
[350071489,1737599445537,-501.34618553,0.00019625,2]
[350071490,1737599445548,-500.0,0.00019625,2]
[350071491,1737599445558,-502.42454371,0.00019625,2]
[350071492,1737599445568,-500.0,0.00019625,2]
[350071493,1737599445577,-500.0,0.00019625,2]
[350071494,1737599445586,-500.0,0.00019625,2]
[350071495,1737599445595,-500.0,0.00019625,2]
[350071496,1737599445604,-500.0,0.00019625,2]
[350071497,1737599445615,-502.84785657,0.00019625,2]
[350071498,1737599445625,-500.0,0.00019625,2]
[350071499,1737599445635,-500.0,0.00019625,2]
[350071500,1737599445644,-500.0,0.00019625,2]
[350071501,1737599445656,-500.0,0.00019625,2]
[350071502,1737599445665,-502.98215513,0.00019625,2]
[350071503,1737599445674,-505.62308364,0.00019625,2]
[350071504,1737599445685,-500.0,0.00019625,2]
[350071505,1737599445695,-500.0,0.00019625,2]
[350071506,1737599445706,-503.49443966,0.00019625,2]
[350071507,1737599445716,-316.28544033,0.00019625,2]
[350071508,1737599445725,-500.0,0.00019625,2]
[350071509,1737599445734,-509.31085001,0.00019625,2]
[350071510,1737599445744,-501.70661215,0.00019625,2]
[350071511,1737599445753,-502.7166115,0.00019625,2]
[350071512,1737599445762,-500.0,0.00019625,2]
[350071513,1737599445771,-500.0,0.00019625,2]
[350071514,1737599445780,-500.0,0.00019625,2]
[350071515,1737599445789,-500.0,0.00019625,2]
[350071516,1737599445799,-500.0,0.00019625,2]
[350071517,1737599445809,-516.39612465,0.00019625,2]
[350071518,1737599445819,-500.0,0.00019625,2]
[350071519,1737599445828,-500.0,0.00019625,2]
[350071520,1737599445838,-500.0,0.00019625,2]
[350071521,1737599445847,-500.0,0.00019625,2]
[350071522,1737599445856,-500.0,0.00019625,2]
[350071523,1737599445871,-500.0,0.00019625,2]
[350071524,1737599445881,-509.56564344,0.00019625,2]
[350071526,1737599445890,-500.0,0.00019625,2]
[350071528,1737599445899,-500.0,0.00019625,2]
[350071529,1737599445914,-500.0,0.00019625,2]
[350071530,1737599445929,-500.0,0.00019625,2]
[350071532,1737599445944,-500.0,0.00019625,2]
[350071533,1737599445957,-500.0,0.00019625,2]
[350071534,1737599445969,-500.0,0.00019625,2]
[350071535,1737599445982,-505.23701882,0.00019625,2]
[350071536,1737599445996,-500.0,0.00019625,2]
[350071538,1737599446009,-500.0,0.00019625,2]
[350071539,1737599446024,-500.0,0.00019625,2]
[350071540,1737599446038,-500.0,0.00019625,2]
[350071541,1737599446050,-500.0,0.00019625,2]
[350071542,1737599446062,-350.0,0.00019625,2]
[350071543,1737599446072,-500.0,0.00019625,2]
[350071544,1737599446084,-500.0,0.00019625,2]
[350071547,1737599446097,-500.0,0.00019625,2]
[350071548,1737599446110,-632.50862155,0.00019625,2]
[350071549,1737599446124,-500.0,0.00019625,2]
[350071550,1737599446136,-500.0,0.00019625,2]
[350071551,1737599446149,-500.0,0.00019625,2]
[350071552,1737599446162,-505.77734973,0.00019625,2]
[350071553,1737599446174,-500.0,0.00019625,2]
[350071554,1737599446186,-5000.0,0.00019625,2]
[350071555,1737599446206,-500.0,0.00019625,2]
[350071556,1737599446219,-480.84458284,0.00019625,2]
[350071557,1737599446232,-500.0,0.00019625,2]
[350071558,1737599446245,-494.24090497,0.00019625,2]
[350071559,1737599446256,-500.0,0.00019625,2]
[350071560,1737599446270,-3185.60830584,0.00019664,2]
[350071561,1737599446283,-283.6635034,0.00019678,2]
[350071562,1737599446296,-500.0,0.00019724,2]
[350071563,1737599446307,-565.35,0.00019724,2]
[350071564,1737599446319,-492.581712,0.00019724,2]
[350071565,1737599446332,-500.0,0.00019724,2]
[350071566,1737599446343,-500.0,0.00019724,2]
[350071567,1737599446355,-832.87,0.00019724,2]
[350071568,1737599446370,-567.524343,0.00019724,2]
[350071569,1737599446382,-500.0,0.00019724,2]
[350071570,1737599446392,-500.0,0.00019724,2]
[350071571,1737599446402,-598.68,0.00019724,2]
[350071572,1737599446412,-726.07,0.00019724,2]
[350071573,1737599446424,-877.0,0.00019724,2]
[350071574,1737599446437,-561.82,0.00019724,2]
[350071575,1737599446450,-1634.03,0.00019724,2]
[350071576,1737599446462,-1061.31,0.00019724,2]
[350071577,1737599446472,-2096.31,0.00019724,2]
[350071578,1737599446482,-2326.67,0.00019724,2]
[350071579,1737599446493,-500.0,0.00019724,2]
[350071580,1737599446504,-1001.28,0.00019724,2]
[350071581,1737599446515,-2560.3,0.00019724,2]
[350071582,1737599446526,-500.0,0.00019724,2]
[350071583,1737599446538,-1111.68,0.00019724,2]
[350071584,1737599446549,-1248.25,0.00019724,2]
[350071585,1737599446560,-500.0,0.00019725,2]
[350071586,1737599446571,-500.0,0.00019725,2]
[350071587,1737599446582,-675.5,0.00019725,2]
[350071588,1737599446593,-988.31,0.00019725,2]
[350071589,1737599446604,-500.0,0.00019725,2]
[350071590,1737599446615,-500.0,0.00019725,2]
[350071591,1737599446626,-500.0,0.00019725,2]
[350071592,1737599446637,-500.0,0.00019725,2]
[350071593,1737599446649,-500.0,0.00019725,2]
[350071594,1737599446659,-500.0,0.00019725,2]
[350071595,1737599446671,-500.0,0.00019725,2]
[350071596,1737599446682,-500.0,0.00019725,2]
[350071597,1737599446693,-500.0,0.00019725,2]
[350071598,1737599446705,-500.0,0.00019725,2]
[350071599,1737599446716,-500.0,0.00019725,2]
[350071600,1737599446727,-500.0,0.00019725,2]
[350071601,1737599446737,-335.28965046,0.00019725,2]
[350071602,1737599446748,-500.0,0.00019725,2]
[350071603,1737599446759,-500.0,0.00019725,2]
[350071604,1737599446770,-500.0,0.00019725,2]
[350071605,1737599446781,-500.0,0.00019725,2]
[350071606,1737599446791,-500.0,0.00019725,2]
[350071607,1737599446802,-500.0,0.00019725,2]
[350071608,1737599446813,-500.0,0.00019725,2]
[350071609,1737599446826,-500.0,0.00019725,2]
[350071610,1737599446836,-500.0,0.00019725,2]
[350071611,1737599446848,-500.0,0.00019725,2]
[350071612,1737599446859,-500.0,0.00019725,2]
[350071613,1737599446872,-561.44,0.00019725,2]
[350071614,1737599446884,-502.7,0.00019725,2]
[350071615,1737599446895,-647.89,0.00019725,2]
[350071616,1737599446907,-500.0,0.00019725,2]
[350071617,1737599446919,-3339.86,0.00019725,2]
[350071618,1737599446930,-500.0,0.00019725,2]
[350071619,1737599446941,-500.0,0.00019725,2]
[350071620,1737599446954,-788.96,0.00019725,2]
[350071621,1737599446966,-500.0,0.00019725,2]
[350071622,1737599446978,-772.85,0.00019725,2]
[350071623,1737599446989,-500.0,0.00019725,2]
[350071624,1737599447000,-1244.64,0.00019725,2]
[350071625,1737599447011,-500.0,0.00019725,2]
[350071626,1737599447022,-500.0,0.00019725,2]
[350071627,1737599447033,-500.0,0.00019725,2]
[350071628,1737599447044,-561.73,0.00019725,2]
[350071629,1737599447055,-500.0,0.00019725,2]
[350071630,1737599447066,-1204.99,0.00019725,2]
[350071631,1737599447077,-500.0,0.00019725,2]
[350071632,1737599447088,-500.0,0.00019725,2]
[350071633,1737599447099,-1657.73,0.00019725,2]
[350071634,1737599447110,-673.68,0.00019725,2]
[350071635,1737599447121,-500.0,0.00019725,2]
[350071636,1737599447132,-501.79,0.00019725,2]
[350071637,1737599447143,-500.0,0.00019725,2]
[350071638,1737599447154,-2667.34,0.00019725,2]
[350071639,1737599447165,-500.0,0.00019725,2]
[350071640,1737599447176,-742.07,0.00019725,2]
[350071641,1737599447187,-1126.57,0.00019725,2]
[350071642,1737599447199,-500.0,0.00019725,2]
[350071643,1737599447212,-1053.15,0.00019725,2]
[350071644,1737599447223,-515.66106063,0.00019725,2]
[350071645,1737599447233,-500.0,0.00019725,2]
[350071646,1737599447244,-1636.74,0.00019725,2]
[350071647,1737599447255,-1167.74,0.00019725,2]
[350071648,1737599447266,-500.0,0.00019725,2]
[350071649,1737599447277,-537.15,0.00019725,2]
[350071650,1737599447289,-500.0,0.00019725,2]
[350071651,1737599447299,-1055.11,0.00019725,2]
[350071652,1737599447311,-500.0,0.00019725,2]
[350071653,1737599447322,-3246.93,0.00019725,2]
[350071654,1737599447333,-500.0,0.00019725,2]
[350071655,1737599447344,-964.19,0.00019725,2]
[350071656,1737599447356,-500.0,0.00019725,2]
[350071657,1737599447367,-756.51,0.00019725,2]
[350071658,1737599447377,-500.0,0.00019725,2]
[350071659,1737599447387,-1000.0,0.00019725,2]
[350071660,1737599447398,-500.0,0.00019725,2]
[350071661,1737599447410,-500.0,0.00019725,2]
[350071662,1737599447421,-1060.92,0.00019725,2]
[350071663,1737599447431,-1921.47,0.00019725,2]
[350071664,1737599447443,-500.0,0.00019725,2]
[350071665,1737599447454,-500.0,0.00019725,2]
[350071666,1737599447465,-500.0,0.00019725,2]
[350071667,1737599447476,-923.14,0.00019725,2]
[350071668,1737599447487,-1906.61,0.00019725,2]
[350071669,1737599447497,-500.0,0.00019725,2]
[350071670,1737599447508,-500.0,0.00019725,2]
[350071671,1737599447519,-500.0,0.00019725,2]
[350071672,1737599447530,-500.0,0.00019725,2]
[350071673,1737599447542,-1771.53,0.00019725,2]
[350071674,1737599447552,-1218.14,0.00019725,2]
[350071675,1737599447563,-1872.91,0.00019725,2]
[350071676,1737599447574,-500.0,0.00019725,2]
[350071677,1737599447584,-500.0,0.00019725,2]
[350071678,1737599447595,-500.0,0.00019725,2]
[350071679,1737599447606,-571.98846702,0.00019725,2]
[350071680,1737599447617,-500.0,0.00019725,2]
[350071681,1737599447627,-500.0,0.00019725,2]
[350071682,1737599447638,-500.0,0.00019725,2]
[350071683,1737599447867,-500.0,0.00019725,2]
[350071684,1737599447877,-692.17,0.00019725,2]
[350071685,1737599447887,-500.0,0.00019725,2]
[350071686,1737599447897,-500.0,0.00019725,2]
[350071687,1737599447907,-500.0,0.00019725,2]
[350071688,1737599447916,-500.0,0.00019725,2]
[350071689,1737599447925,-526.8,0.00019725,2]
[350071690,1737599447936,-500.0,0.00019725,2]
[350071691,1737599447946,-500.0,0.00019725,2]
[350071692,1737599447956,-681.51,0.00019725,2]
[350071693,1737599447965,-500.0,0.00019725,2]
[350071694,1737599447975,-500.0,0.00019725,2]
[350071695,1737599447984,-500.0,0.00019725,2]
[350071696,1737599447994,-688.26,0.00019725,2]
[350071697,1737599448003,-500.0,0.00019725,2]
[350071698,1737599448013,-502.15365608,0.00019725,2]
[350071699,1737599448023,-500.0,0.00019725,2]
[350071700,1737599448032,-500.0,0.00019725,2]
[350071701,1737599448043,-878.81,0.00019725,2]
[350071702,1737599448052,-500.0,0.00019725,2]
[350071703,1737599448061,-529.67,0.00019725,2]
[350071704,1737599448070,-758.26,0.00019725,2]
[350071705,1737599448080,-1218.65,0.00019725,2]
[350071706,1737599448089,-233.89460858,0.00019725,2]
[350071707,1737599448099,-500.0,0.00019725,2]
[350071708,1737599448109,-500.0,0.00019725,2]
[350071709,1737599448118,-500.0,0.00019725,2]
[350071710,1737599448128,-1137.11,0.00019725,2]
[350071711,1737599448137,-500.0,0.00019725,2]
[350071712,1737599448147,-500.0,0.00019725,2]
[350071713,1737599448157,-2655.17,0.00019725,2]
[350071714,1737599448166,-500.0,0.00019725,2]
[350071715,1737599448175,-500.0,0.00019726,2]
[350071716,1737599448185,-500.0,0.00019726,2]
[350071717,1737599448195,-500.0,0.00019726,2]
[350071718,1737599448205,-500.0,0.00019726,2]
[350071719,1737599448215,-500.0,0.00019726,2]
[350071720,1737599448230,-500.0,0.00019726,2]
[350071721,1737599448240,-500.0,0.00019726,2]
[350071722,1737599448250,-500.0,0.00019726,2]
[350071723,1737599448259,-500.0,0.00019726,2]
[350071724,1737599448268,-500.0,0.00019726,2]
[350071725,1737599448278,-500.0,0.00019726,2]
[350071726,1737599448287,-500.0,0.00019726,2]
[350071727,1737599448296,-500.0,0.00019726,2]
[350071728,1737599448306,-500.0,0.00019726,2]
[350071729,1737599448316,-509.86,0.00019726,2]
[350071730,1737599448325,-500.0,0.00019726,2]
[350071731,1737599448334,-500.0,0.00019726,2]
[350071732,1737599448344,-505.3,0.00019726,2]
[350071733,1737599448354,-203.61687423,0.00019726,2]
[350071734,1737599448363,-500.0,0.00019726,2]
[350071735,1737599448373,-500.0,0.00019726,2]
[350071736,1737599448383,-500.0,0.00019726,2]
[350071737,1737599448392,-500.0,0.00019726,2]
[350071738,1737599448402,-500.0,0.00019726,2]
[350071739,1737599448411,-500.0,0.00019726,2]
[350071740,1737599448421,-1459.64,0.00019726,2]
[350071741,1737599448430,-671.25,0.00019726,2]
[350071742,1737599448440,-2004.83,0.00019726,2]
[350071743,1737599448449,-500.0,0.00019726,2]
[350071744,1737599448458,-500.0,0.00019726,2]
[350071745,1737599448468,-841.37,0.00019726,2]
[350071746,1737599448477,-1812.62,0.00019726,2]
[350071747,1737599448487,-1463.35,0.00019726,2]
[350071748,1737599448496,-924.69,0.00019726,2]
[350071749,1737599448505,-3081.37,0.00019726,2]
[350071750,1737599448515,-500.0,0.00019726,2]
[350071751,1737599448524,-694.55,0.00019726,2]
[350071752,1737599448534,-1262.91,0.00019726,2]
[350071753,1737599448543,-547.76,0.00019726,2]
[350071754,1737599448552,-929.07,0.00019726,2]
[350071755,1737599448561,-1206.37,0.00019726,2]
[350071756,1737599448571,-1867.47,0.00019726,2]
[350071757,1737599448580,-500.0,0.00019726,2]
[350071758,1737599448590,-1460.57,0.00019726,2]
[350071759,1737599448599,-1160.34,0.00019726,2]
[350071760,1737599448608,-500.0,0.00019726,2]
[350071761,1737599448617,-500.0,0.00019726,2]
[350071762,1737599448627,-500.0,0.00019726,2]
[350071763,1737599448636,-796.55,0.00019726,2]
[350071764,1737599448645,-1258.1,0.00019726,2]
[350071765,1737599448655,-1251.58,0.00019726,2]
[350071766,1737599448664,-2295.01,0.00019726,2]
[350071767,1737599448674,-2099.06,0.00019726,2]
[350071768,1737599448684,-1038.44,0.00019726,2]
[350071769,1737599448693,-859.68,0.00019726,2]
[350071770,1737599448704,-839.81,0.00019726,2]
[350071771,1737599448713,-500.0,0.00019726,2]
[350071772,1737599448722,-2809.15,0.00019726,2]
[350071773,1737599448732,-255.36221661,0.00019726,2]
[350071774,1737599448741,-500.0,0.00019726,2]
[350071775,1737599448751,-503.40360493,0.00019726,2]
[350071776,1737599448760,-500.0,0.00019726,2]
[350071777,1737599448770,-512.25,0.00019726,2]
[350071778,1737599448779,-500.0,0.00019726,2]
[350071779,1737599448788,-500.0,0.00019726,2]
[350071780,1737599448799,-304.49320659,0.00019726,2]
[350071781,1737599448809,-847.25,0.00019726,2]
[350071782,1737599448819,-500.0,0.00019726,2]
[350071783,1737599448828,-809.53,0.00019726,2]
[350071784,1737599448838,-500.0,0.00019726,2]
[350071785,1737599448847,-500.0,0.00019726,2]
[350071786,1737599448856,-500.0,0.00019726,2]
[350071787,1737599448866,-500.0,0.00019726,2]
[350071788,1737599448877,-500.0,0.00019726,2]
[350071789,1737599448888,-500.0,0.00019726,2]
[350071790,1737599448898,-500.0,0.00019726,2]
[350071791,1737599448907,-500.0,0.00019726,2]
[350071792,1737599448917,-500.0,0.00019726,2]
[350071793,1737599448927,-500.0,0.00019726,2]
[350071794,1737599448936,-500.0,0.00019726,2]
[350071795,1737599448946,-500.0,0.00019726,2]
[350071796,1737599448958,-2577.5,0.00019726,2]
[350071797,1737599448967,-1303.47,0.00019726,2]
[350071798,1737599448978,-509.0,0.00019726,2]
[350071799,1737599448987,-337.11980556,0.00019728,2]
[350071800,1737599448997,-354.85,0.00019764,2]
[350071801,1737599449006,-425.97490992,0.000198,2]
[350071802,1737599449016,-250.13,0.00019849,30]
[350071803,1737599449025,-166.82370333,0.00019863,2]
[350071804,1737599449035,-259.47905255,0.00019898,2]
[350071805,1737599449044,-500.0,0.00019899,2]
[350071806,1737599449053,-500.0,0.00019899,2]
[350071807,1737599449062,-640.93177437,0.00019899,2]
[350071808,1737599449071,-500.0,0.00019899,2]
[350071809,1737599449080,-500.0,0.00019899,2]
[350071810,1737599449090,-500.0,0.00019899,2]
[350071811,1737599449099,-246.16519841,0.00019899,2]
[350071812,1737599449108,-500.0,0.00019899,2]
[350071813,1737599449117,-500.0,0.00019899,2]
[350071814,1737599449126,-500.0,0.00019899,2]
[350071815,1737599449135,-622.35,0.00019899,2]
[350071816,1737599449144,-648.81699772,0.00019899,2]
[350071817,1737599449154,-184.6405745,0.00019899,2]
[350071818,1737599449163,-517.66151959,0.00019899,2]
[350071819,1737599449172,-500.0,0.00019899,2]
[350071820,1737599449182,-525.61470709,0.00019899,2]
[350071821,1737599449191,-513.68798811,0.00019899,2]